{"text_format":"1","workbook":"xlsx","n_sheets":2,"sheets":["Sayfa1","Sayfa2"],"not_rendered":{"charts":0,"images":0,"macros":1,"external_links":0,"defined_names":1,"comments":0,"pivot_tables":0},"unopened":[],"bounds":{"document_bytes":16777216,"sheet_cells":100000,"rows_first":2000,"rows_last":500,"rows_between":2000,"halvings":0,"cell_chars":16384,"cell_head_chars":4096},"cells_cut":0,"cells_raw":0,"read":"whole","date_system":"1900"}

{"sheet":"Sayfa1","index":0,"n_rows":130,"n_cols":24,"rows_kept":130,"cut":false,"hidden":false,"merged":[[0,0,0,21],[1,0,1,1],[1,2,1,21],[2,4,3,4],[2,7,3,7],[2,0,3,0],[2,1,3,1],[2,2,3,2],[2,3,3,3],[2,5,3,5],[92,5,92,9],[92,19,92,21],[2,19,3,19],[2,12,2,18],[2,9,2,10],[2,20,2,21],[2,6,3,6],[2,8,3,8],[2,11,3,11],[85,14,85,20],[86,14,86,20],[87,14,87,20],[90,0,90,21],[91,0,91,21]]}
["2021-2022 EĞİTİM VE ÖĞRETİM YILI DÖNEMLİK/YILLIK DESTEKLEME VE YETİŞTİRME KURSU AÇMA VE ÖĞRETMEN GÖREVLENDİRME ONAY ÇİZELGESİ",null,null,null,null,null,null,null,null,null,null,null,null,null,null,null,null,null,null,null,null,null,null,"Harun"]
["OKUL ADI   :",null,"İnönü Ortaokulu",null,null,null,null,null,null,null,null,null,null,null,null,null,null,null,null,null,null,null,null,"Harun"]
["S.No","Öğretmenin               Adı Soyadı","Öğrenim Durumu ve Branşı","Kadro Durumu","Öğretmenin Okuttuğu Haftalık Ders Saati Sayısı  (Kurs Hariç)","Açılan Dersin Adı","Sınıf Düzeyi","Grup Adı","Öğr. Sayısı","Kursun Başlama ve Bitiş Tarihleri",null,"Toplam Hafta Sayısı","Kurs Günleri Ders Saati Sayısı",null,null,null,null,null,null,"Haftalık Toplam Ders Saati ","Çalışma Saatleri",null,null,"Harun"]
[null,null,null,null,null,null,null,null,null,"Baş. Tar.","Bit. Tar.",null,"PT","SL","ÇR","PR","CM","CT","PZ",null,"Baş. Sa.","Bit. Sa.",null,"Harun"]
[1,"Ahmet BULUT","Lisans/Tarih","Kadrolu",20,"Din Kültürü ve Ahlak Bilgisi",10,"1.Grup",20,"2018-09-19","2019-01-15",30,null,null,null,null,null,2,null,{"$f":"SUM(M5:S5)","v":2},"08.00","10.00",null,{"$f":"IF(B5>0,\"Harun\",\"\")","v":"Harun"}]
[2,null,null,"Kadrolu",null,null,12,"2.Grup",null,null,null,null,null,null,null,null,null,null,null,{"$f":"SUM(M6:S6)","v":0},null,null,null,{"$f":"IF(B6>0,\"Harun\",\"\")","v":""}]
[3,null,null,"Kadrolu",null,null,12,"1.Grup",null,null,null,null,null,null,null,null,null,null,null,0,null,null,null,""]
[4,null,null,"Kadrolu",null,null,12,"1.Grup",null,null,null,null,null,null,null,null,null,null,null,0,null,null,null,""]
[5,null,null,"Kadrolu",null,null,12,"1.Grup",null,null,null,null,null,null,null,null,null,null,null,0,null,null,null,""]
[6,null,null,"Kadrolu",null,null,12,"1.Grup",null,null,null,null,null,null,null,null,null,null,null,0,null,null,null,""]
[7,null,null,"Kadrolu",null,null,12,"1.Grup",null,null,null,null,null,null,null,null,null,null,null,0,null,null,null,""]
[8,null,null,"Kadrolu",null,null,12,"1.Grup",null,null,null,null,null,null,null,null,null,null,null,0,null,null,null,""]
[9,null,null,"Kadrolu",null,null,12,"1.Grup",null,null,null,null,null,null,null,null,null,null,null,0,null,null,null,""]
[10,null,null,"Kadrolu",null,null,12,"1.Grup",null,null,null,null,null,null,null,null,null,null,null,0,null,null,null,""]
[11,null,null,"Kadrolu",null,null,12,"1.Grup",null,null,null,null,null,null,null,null,null,null,null,0,null,null,null,""]
[12,null,null,"Kadrolu",null,null,12,"1.Grup",null,null,null,null,null,null,null,null,null,null,null,0,null,null,null,""]
[13,null,null,"Kadrolu",null,null,12,"1.Grup",null,null,null,null,null,null,null,null,null,null,null,0,null,null,null,""]
[14,null,null,"Kadrolu",null,null,12,"1.Grup",null,null,null,null,null,null,null,null,null,null,null,0,null,null,null,""]
[15,null,null,"Kadrolu",null,null,12,"1.Grup",null,null,null,null,null,null,null,null,null,null,null,0,null,null,null,""]
[16,null,null,"Kadrolu",null,null,12,"1.Grup",null,null,null,null,null,null,null,null,null,null,null,0,null,null,null,""]
[17,null,null,"Kadrolu",null,null,12,"1.Grup",null,null,null,null,null,null,null,null,null,null,null,0,null,null,null,""]
[18,null,null,"Kadrolu",null,null,12,"1.Grup",null,null,null,null,null,null,null,null,null,null,null,0,null,null,null,""]
[19,null,null,"Kadrolu",null,null,12,"1.Grup",null,null,null,null,null,null,null,null,null,null,null,0,null,null,null,""]
[20,null,null,"Kadrolu",null,null,12,"1.Grup",null,null,null,null,null,null,null,null,null,null,null,0,null,null,null,""]
[21,null,null,"Kadrolu",null,null,12,"1.Grup",null,null,null,null,null,null,null,null,null,null,null,0,null,null,null,""]
[22,null,null,"Kadrolu",null,null,12,"1.Grup",null,null,null,null,null,null,null,null,null,null,null,0,null,null,null,""]
[23,null,null,"Kadrolu",null,null,12,"1.Grup",null,null,null,null,null,null,null,null,null,null,null,0,null,null,null,""]
[24,null,null,"Kadrolu",null,null,12,"1.Grup",null,null,null,null,null,null,null,null,null,null,null,0,null,null,null,""]
[25,null,null,"Kadrolu",null,null,12,"1.Grup",null,null,null,null,null,null,null,null,null,null,null,0,null,null,null,""]
[26,null,null,"Kadrolu",null,null,12,"1.Grup",null,null,null,null,null,null,null,null,null,null,null,0,null,null,null,""]
[27,null,null,"Kadrolu",null,null,12,"1.Grup",null,null,null,null,null,null,null,null,null,null,null,0,null,null,null,""]
[28,null,null,"Kadrolu",null,null,12,"1.Grup",null,null,null,null,null,null,null,null,null,null,null,0,null,null,null,""]
[29,null,null,"Kadrolu",null,null,12,"1.Grup",null,null,null,null,null,null,null,null,null,null,null,0,null,null,null,""]
[30,null,null,"Kadrolu",null,null,12,"1.Grup",null,null,null,null,null,null,null,null,null,null,null,0,null,null,null,""]
[31,null,null,"Kadrolu",null,null,12,"1.Grup",null,null,null,null,null,null,null,null,null,null,null,0,null,null,null,""]
[32,null,null,"Kadrolu",null,null,12,"1.Grup",null,null,null,null,null,null,null,null,null,null,null,0,null,null,null,""]
[33,null,null,"Kadrolu",null,null,12,"1.Grup",null,null,null,null,null,null,null,null,null,null,null,0,null,null,null,""]
[34,null,null,"Kadrolu",null,null,12,"1.Grup",null,null,null,null,null,null,null,null,null,null,null,0,null,null,null,""]
[35,null,null,"Kadrolu",null,null,12,"1.Grup",null,null,null,null,null,null,null,null,null,null,null,0,null,null,null,""]
[36,null,null,"Kadrolu",null,null,12,"1.Grup",null,null,null,null,null,null,null,null,null,null,null,0,null,null,null,""]
[37,null,null,"Kadrolu",null,null,12,"1.Grup",null,null,null,null,null,null,null,null,null,null,null,0,null,null,null,""]
[38,null,null,"Kadrolu",null,null,12,"1.Grup",null,null,null,null,null,null,null,null,null,null,null,0,null,null,null,""]
[39,null,null,"Kadrolu",null,null,12,"1.Grup",null,null,null,null,null,null,null,null,null,null,null,0,null,null,null,""]
[40,null,null,"Kadrolu",null,null,12,"1.Grup",null,null,null,null,null,null,null,null,null,null,null,0,null,null,null,""]
[41,null,null,"Kadrolu",null,null,12,"1.Grup",null,null,null,null,null,null,null,null,null,null,null,0,null,null,null,""]
[42,null,null,"Kadrolu",null,null,12,"1.Grup",null,null,null,null,null,null,null,null,null,null,null,0,null,null,null,""]
[43,null,null,"Kadrolu",null,null,12,"1.Grup",null,null,null,null,null,null,null,null,null,null,null,0,null,null,null,""]
[44,null,null,"Kadrolu",null,null,12,"1.Grup",null,null,null,null,null,null,null,null,null,null,null,0,null,null,null,""]
[45,null,null,"Kadrolu",null,null,12,"1.Grup",null,null,null,null,null,null,null,null,null,null,null,0,null,null,null,""]
[46,null,null,"Kadrolu",null,null,12,"1.Grup",null,null,null,null,null,null,null,null,null,null,null,0,null,null,null,""]
[47,null,null,"Kadrolu",null,null,12,"1.Grup",null,null,null,null,null,null,null,null,null,null,null,0,null,null,null,""]
[48,null,null,"Kadrolu",null,null,12,"1.Grup",null,null,null,null,null,null,null,null,null,null,null,0,null,null,null,""]
[49,null,null,"Kadrolu",null,null,12,"1.Grup",null,null,null,null,null,null,null,null,null,null,null,0,null,null,null,""]
[50,null,null,"Kadrolu",null,null,12,"1.Grup",null,null,null,null,null,null,null,null,null,null,null,0,null,null,null,""]
[51,null,null,"Kadrolu",null,null,12,"1.Grup",null,null,null,null,null,null,null,null,null,null,null,0,null,null,null,""]
[52,null,null,"Kadrolu",null,null,12,"1.Grup",null,null,null,null,null,null,null,null,null,null,null,0,null,null,null,""]
[53,null,null,"Kadrolu",null,null,12,"1.Grup",null,null,null,null,null,null,null,null,null,null,null,0,null,null,null,""]
[54,null,null,"Kadrolu",null,null,12,"1.Grup",null,null,null,null,null,null,null,null,null,null,null,0,null,null,null,""]
[55,null,null,"Kadrolu",null,null,12,"1.Grup",null,null,null,null,null,null,null,null,null,null,null,0,null,null,null,""]
[56,null,null,"Kadrolu",null,null,12,"1.Grup",null,null,null,null,null,null,null,null,null,null,null,0,null,null,null,""]
[57,null,null,"Kadrolu",null,null,12,"1.Grup",null,null,null,null,null,null,null,null,null,null,null,0,null,null,null,""]
[58,null,null,"Kadrolu",null,null,12,"1.Grup",null,null,null,null,null,null,null,null,null,null,null,0,null,null,null,""]
[59,null,null,"Kadrolu",null,null,12,"1.Grup",null,null,null,null,null,null,null,null,null,null,null,0,null,null,null,""]
[60,null,null,"Kadrolu",null,null,12,"1.Grup",null,null,null,null,null,null,null,null,null,null,null,0,null,null,null,""]
[61,null,null,"Kadrolu",null,null,12,"1.Grup",null,null,null,null,null,null,null,null,null,null,null,0,null,null,null,""]
[62,null,null,"Kadrolu",null,null,12,"1.Grup",null,null,null,null,null,null,null,null,null,null,null,0,null,null,null,""]
[63,null,null,"Kadrolu",null,null,12,"1.Grup",null,null,null,null,null,null,null,null,null,null,null,0,null,null,null,""]
[64,null,null,"Kadrolu",null,null,12,"1.Grup",null,null,null,null,null,null,null,null,null,null,null,0,null,null,null,""]
[65,null,null,"Kadrolu",null,null,12,"1.Grup",null,null,null,null,null,null,null,null,null,null,null,0,null,null,null,""]
[66,null,null,"Kadrolu",null,null,12,"1.Grup",null,null,null,null,null,null,null,null,null,null,null,{"$f":"SUM(M70:S70)","v":0},null,null,null,{"$f":"IF(B70>0,\"Harun\",\"\")","v":""}]
[67,null,null,"Kadrolu",null,null,12,"1.Grup",null,null,null,null,null,null,null,null,null,null,null,0,null,null,null,""]
[68,null,null,"Kadrolu",null,null,12,"1.Grup",null,null,null,null,null,null,null,null,null,null,null,0,null,null,null,""]
[69,null,null,"Kadrolu",null,null,12,"1.Grup",null,null,null,null,null,null,null,null,null,null,null,0,null,null,null,""]
[70,null,null,"Kadrolu",null,null,12,"1.Grup",null,null,null,null,null,null,null,null,null,null,null,0,null,null,null,""]
[71,null,null,"Kadrolu",null,null,12,"1.Grup",null,null,null,null,null,null,null,null,null,null,null,0,null,null,null,""]
[72,null,null,"Kadrolu",null,null,12,"1.Grup",null,null,null,null,null,null,null,null,null,null,null,0,null,null,null,""]
[73,null,null,"Kadrolu",null,null,12,"1.Grup",null,null,null,null,null,null,null,null,null,null,null,0,null,null,null,""]
[74,null,null,"Kadrolu",null,null,12,"1.Grup",null,null,null,null,null,null,null,null,null,null,null,0,null,null,null,""]
[75,null,null,"Kadrolu",null,null,12,"1.Grup",null,null,null,null,null,null,null,null,null,null,null,0,null,null,null,""]
[76,null,null,"Kadrolu",null,null,12,"1.Grup",null,null,null,null,null,null,null,null,null,null,null,0,null,null,null,""]
[77,null,null,"Kadrolu",null,null,12,"1.Grup",null,null,null,null,null,null,null,null,null,null,null,0,null,null,null,""]
[78,null,null,"Kadrolu",null,null,12,"1.Grup",null,null,null,null,null,null,null,null,null,null,null,0,null,null,null,""]
[79,null,null,"Kadrolu",null,null,12,"1.Grup",null,null,null,null,null,null,null,null,null,null,null,0,null,null,null,""]
[80,null,null,"Kadrolu",null,null,12,"1.Grup",null,null,null,null,null,null,null,null,null,null,null,0,null,null,null,""]
[null,null,null,null,null,null,null,null,null,null,null,null,null,null,null,null,null,null,null,null,null,null,null,"Harun "]
[null,null,null,null,null,null,null,null,null,null,null,null,null,null,"2018-10-10",null,null,null,null,null,null,null,null,"Harun "]
[null,null,null,null,null,null,null,null,null,null,null,null,null,null,"……",null,null,null,null,null,null,null,null,"Harun "]
[null,null,null,null,null,null,null,null,null,null,null,null,null,null,"Okul Müdürü",null,null,null,null,null,null,null,null,"Harun "]
[null,"Ahmet BULUT",null,null,null,null,null,null,null,null,null,null,null,null,null,null,null,null,null,null,null,null,null,"Harun "]
[null,"Şube Müdürü",null,null,null,null,null,null,null,null,null,null,null,null,null,null,null,null,null,null,null,null,null,"Harun "]
["……/……../2018",null,null,null,null,null,null,null,null,null,null,null,null,null,null,null,null,null,null,null,null,null,null,"Harun "]
["Murat KAYA",null,null,null,null,null,null,null,null,null,null,null,null,null,null,null,null,null,null,null,null,null,null,"Harun "]
[null,null,null,null,null,"İlçe Milli Eğitim Müdürü",null,null,null,null,null,null,null,null,null,null,null,null,null,null,null,null,null,"Harun "]
[]
[]
[]
[]
[]
[]
[]
[]
[]
[]
[]
[]
[]
[]
[]
[]
[]
[]
[]
[]
[]
[]
[]
[null,null,null,"Seçiniz",null,null,"Seçiniz","Seçiniz"]
[null,null,null,"Kadrolu",null,null,"Mezun","1.Grup"]
[null,null,null,"Sözleşmeli",null,null,12,"2.Grup"]
[null,null,null,"Ücretli",null,null,11,"3.Grup"]
[null,null,null,null,null,null,10,"4.Grup"]
[null,null,null,null,null,null,9,"5.Grup"]
[null,null,null,null,null,null,8]
[null,null,null,null,null,null,7]
[null,null,null,null,null,null,6]
[null,null,null,null,null,null,5]
[null,null,null,null,null,null,4]
[null,null,null,null,null,null,3]
[null,null,null,null,null,null,2]
[null,null,null,null,null,null,1]

{"sheet":"Sayfa2","index":1,"n_rows":16,"n_cols":5,"rows_kept":16,"cut":false,"hidden":false,"merged":[]}
[]
["Seçiniz",null,"Seçiniz",null,"Seçiniz"]
[]
["Kadrolu",null,"Mezun",null,"1.Grup"]
["Sözleşmeli",null,12,null,"2.Grup"]
["Ücretli",null,11,null,"3.Grup"]
[null,null,10,null,"4.Grup"]
[null,null,9,null,"5.Grup"]
[null,null,8]
[null,null,7]
[null,null,6]
[null,null,5]
[null,null,4]
[null,null,3]
[null,null,2]
[null,null,1]